bitfinex/quotes_BTCUSD_20250829
["timestamp","ask_amount","ask_price","bid_price","bid_amount"]
[1756429488504,6.48375236,112330.0,112320.0,0.0022]
[1756429489380,6.14140324,112330.0,112320.0,0.0022]
[1756429491535,5.79917412,112330.0,112320.0,0.00426]
[1756429491670,6.13635324,112330.0,112320.0,0.00426]
[1756429491880,6.14140324,112330.0,112320.0,0.0022]
[1756429492981,6.1414018,112330.0,112320.0,0.0022]
[1756429495214,6.07781042,112330.0,112320.0,0.0022]
[1756429496631,6.07159251,112330.0,112320.0,0.0022]
[1756429496785,6.07780829,112330.0,112320.0,0.0022]
[1756429499239,6.05873172,112330.0,112320.0,0.0022]
[1756429499438,6.07783859,112330.0,112320.0,0.0022]
[1756429500358,5.98461227,112330.0,112320.0,0.00426]
[1756429500528,5.97713849,112330.0,112320.0,0.18482267]
[1756429500716,5.55939535,112330.0,112320.0,0.18482267]
[1756429500922,5.71079535,112330.0,112320.0,0.18482267]
[1756429501126,5.36844623,112330.0,112320.0,0.18482267]
[1756429501330,5.97922849,112330.0,112320.0,0.00426]
[1756429501517,5.98218849,112330.0,112320.0,0.18026267]
[1756429502158,5.64769167,112330.0,112320.0,0.18232267]
[1756429502376,5.36856623,112330.0,112320.0,0.18482267]
[1756429502602,5.74276418,112330.0,112320.0,0.18482267]
[1756429503322,5.59124418,112330.0,112320.0,0.18482267]
[1756429503464,5.74276418,112330.0,112320.0,0.18482267]
[1756429503659,0.83064018,112330.0,112320.0,0.18482267]
[1756429503867,0.98220018,112330.0,112320.0,0.18482267]
[1756429504056,1.160247,112330.0,112320.0,0.18232267]
[1756429504258,1.11247884,112330.0,112320.0,0.18232267]
[1756429504698,0.87116834,112330.0,112320.0,0.18482267]
[1756429504955,1.20077516,112330.0,112320.0,0.18232267]
[1756429505147,1.20077516,112330.0,112320.0,0.18482267]
[1756429505344,1.17399916,112330.0,112320.0,0.18482267]
[1756429505548,1.08570284,112330.0,112320.0,0.18482267]
[1756429505885,1.08572373,112330.0,112320.0,0.18232267]
[1756429506090,1.10961435,112330.0,112320.0,0.18232267]
[1756429508154,1.08072552,112330.0,112320.0,0.18232267]
[1756429508324,1.08281552,112330.0,112320.0,0.18232267]
[1756429509426,0.9047687,112330.0,112320.0,0.18232267]
[1756429509707,1.08281552,112330.0,112320.0,0.18232267]
[1756429510111,0.8995987,112330.0,112320.0,0.18482267]
[1756429511132,0.7481587,112330.0,112320.0,0.18482267]
[1756429511282,0.89955763,112330.0,112320.0,0.18482267]
[1756429511681,0.73525533,112330.0,112320.0,0.18232267]
[1756429511887,1.08265445,112330.0,112320.0,0.18232267]
[1756429513088,1.07756445,112330.0,112320.0,0.18232267]
[1756429513318,0.89951763,112330.0,112320.0,0.18232267]
[1756429513522,1.07756445,112330.0,112320.0,0.18232267]
[1756429513825,1.08261445,112330.0,112320.0,0.18232267]
[1756429516304,1.06602384,112330.0,112320.0,0.18232267]
[1756429516454,0.71871725,112330.0,112320.0,0.18232267]
[1756429516863,0.71871725,112330.0,112320.0,0.0022]
[1756429517081,1.14936269,112330.0,112320.0,0.0022]
[1756429517225,6.02609762,112330.0,112320.0,0.0022]
[1756429517615,6.10106869,112330.0,112320.0,0.0022]
[1756429517822,6.12784569,112330.0,112320.0,0.0022]
[1756429518031,6.03954937,112330.0,112320.0,0.0022]
[1756429518573,5.69485113,112330.0,112320.0,0.0022]
[1756429518800,6.37954937,112330.0,112320.0,0.0022]
[1756429519837,6.4113982,112330.0,112320.0,0.0022]
[1756429520043,6.49969452,112330.0,112320.0,0.0022]
[1756429520258,6.53927368,112330.0,112320.0,0.0022]
[1756429522280,6.50742485,112330.0,112320.0,0.0022]
[1756429522940,6.53927368,112330.0,112320.0,0.0022]
[1756429523886,6.38791368,112330.0,112320.0,0.0022]
[1756429524081,6.53919368,112330.0,112320.0,0.0022]
[1756429524254,6.50734485,112330.0,112320.0,0.0022]
[1756429524657,6.51530678,112330.0,112320.0,0.0022]
[1756429525124,6.5362456,112330.0,112320.0,0.0022]
[1756429525850,6.5362056,112330.0,112320.0,0.0022]
[1756429526057,6.27299244,112330.0,112320.0,0.0022]
[1756429526275,6.34801168,112330.0,112320.0,0.0022]
[1756429526474,6.39133834,112330.0,112320.0,0.0022]
[1756429526652,6.39131877,112330.0,112320.0,0.0022]
[1756429527239,6.39135877,112330.0,112320.0,0.0022]
[1756429527553,6.47965441,112330.0,112320.0,0.0022]
[1756429530851,6.50059323,112330.0,112320.0,0.0022]
[1756429531289,6.42082152,112330.0,112320.0,0.0022]
[1756429531917,6.44865613,112330.0,112320.0,0.0022]
[1756429532118,6.47233297,112330.0,112320.0,0.0022]
[1756429532538,6.42456481,112330.0,112320.0,0.0022]
[1756429533278,6.40088797,112330.0,112320.0,0.0002]
[1756429533673,6.33898429,112330.0,112320.0,0.0002]
[1756429533921,6.25068797,112330.0,112320.0,0.0002]
[1756429534182,6.40723112,112330.0,112320.0,0.0002]
[1756429534393,6.43606573,112330.0,112320.0,0.0002]
[1756429534586,6.46347306,112330.0,112320.0,0.0002]
[1756429534740,6.41578446,112330.0,112320.0,0.0002]
[1756429534945,6.56767216,112330.0,112320.0,0.0002]
[1756429535888,6.41649843,112330.0,112320.0,0.0002]
[1756429536094,6.56781843,112330.0,112320.0,0.0002]
[1756429536246,0.17807853,112310.0,112300.0,0.0002]
[1756429536460,6.0555755,112310.0,112300.0,0.0002]
[1756429536639,6.90718429,112310.0,112300.0,1e-08]
[1756429536838,6.90718429,112310.0,112290.0,0.0002]
[1756429536839,0.57333633,112300.0,112290.0,0.0002]
[1756429537068,1.56609643,112290.0,112280.0,0.00028]
[1756429537266,1.56609643,112290.0,112260.0,0.0002]
[1756429537267,1.56612815,112270.0,112260.0,0.0002]
[1756429537492,6.76088505,112270.0,112260.0,0.0002]
[1756429537693,6.76088505,112270.0,112220.0,0.0002]
[1756429537694,0.02093882,112230.0,112220.0,0.0002]
[1756429538023,5.45765079,112230.0,112220.0,0.0002]
[1756429538148,5.36639065,112230.0,112220.0,0.00226]
[1756429538335,5.81702152,112230.0,112220.0,0.00523]
[1756429538535,0.37565832,112230.0,112220.0,0.25408217]
[1756429538791,0.3565488,112230.0,112220.0,0.25408217]
[1756429539022,0.34,112230.0,112220.0,0.34237849]
[1756429539329,0.34014277,112230.0,112220.0,0.34237849]
[1756429539871,0.00014277,112230.0,112220.0,0.68472761]
[1756429540531,0.00014277,112230.0,112220.0,0.83656761]
[1756429540731,0.00014277,112230.0,112220.0,0.85750643]
[1756429540888,0.00014277,112230.0,112220.0,0.95080275]
[1756429541387,0.00014277,112230.0,112220.0,0.94580275]
[1756429541552,0.00014277,112230.0,112220.0,0.79396275]
[1756429541756,0.00014277,112230.0,112220.0,0.73133193]
[1756429541992,0.34249189,112230.0,112220.0,0.27974767]
[1756429542196,0.86893175,112230.0,112220.0,0.18848135]
[1756429542412,0.86893175,112230.0,112220.0,0.01026]
[1756429542548,1.25165749,112230.0,112220.0,0.0082]
[1756429542791,1.28468926,112230.0,112220.0,0.0082]
[1756429543149,0.94234014,112230.0,112220.0,0.0082]
[1756429543457,0.5691656,112230.0,112220.0,0.0002]
[1756429543638,0.5691656,112230.0,112220.0,0.0042]
[1756429543792,0.93934933,112230.0,112220.0,0.0002]
[1756429544007,0.59700021,112230.0,112220.0,0.0002]
[1756429544212,1.02764565,112230.0,112220.0,0.0032]
[1756429544672,5.90648626,112230.0,112220.0,0.0032]
[1756429544786,5.93818074,112230.0,112220.0,0.0032]
[1756429544986,5.91440629,112230.0,112220.0,0.0032]
[1756429545191,6.25440629,112230.0,112220.0,0.0032]
[1756429545527,6.27829904,112230.0,112220.0,0.0032]
[1756429545932,6.29923786,112230.0,112220.0,0.0032]
[1756429546341,6.31508511,112230.0,112220.0,0.0002]
[1756429547166,6.34188911,112230.0,112220.0,0.0002]
[1756429547372,5.99896559,112230.0,112220.0,0.0002]
[1756429547651,6.01536968,112230.0,112220.0,0.0002]
[1756429548210,6.01536968,112230.0,112200.0,0.0002]
[1756429548211,0.53649913,112210.0,112200.0,0.0002]
[1756429548376,5.72107882,112210.0,112200.0,0.0002]
[1756429548577,5.72622882,112210.0,112200.0,0.0002]
[1756429549283,6.42449072,112210.0,112200.0,0.0002]
[1756429549474,6.50727121,112210.0,112200.0,0.0002]
[1756429549674,6.55210278,112210.0,112200.0,0.0002]
[1756429549877,6.55210278,112210.0,112200.0,0.0032]
[1756429550664,6.55210278,112210.0,112200.0,0.0002]
[1756429552193,6.19448088,112210.0,112200.0,0.0002]
[1756429552374,6.19289327,112210.0,112200.0,0.0002]
[1756429553198,6.1776077,112210.0,112200.0,0.0002]
[1756429553400,6.11421118,112210.0,112200.0,0.0002]
[1756429553860,5.93971236,112210.0,112200.0,0.0002]
[1756429554075,5.52639301,112210.0,112200.0,0.00234]
[1756429554282,6.03816264,112210.0,112200.0,0.00234]
[1756429554506,6.04024264,112210.0,112200.0,0.0002]
[1756429554706,6.04024264,112210.0,112200.0,0.00234]
[1756429555863,6.03816264,112210.0,112200.0,0.00234]
[1756429556072,5.40101879,112210.0,112200.0,0.18357311]
[1756429556238,5.40101879,112210.0,112200.0,0.00532]
[1756429556239,5.86558907,112210.0,112200.0,0.00532]
[1756429556544,5.91276069,112210.0,112200.0,0.18059311]
[1756429556749,6.00620701,112210.0,112200.0,0.00234]
[1756429556945,6.06304896,112210.0,112200.0,0.0012]
[1756429557292,6.06304896,112210.0,112200.0,0.0002]
[1756429557490,6.06304896,112210.0,112200.0,0.0032]
[1756429557715,6.05485881,112210.0,112200.0,0.0002]
[1756429557919,6.06303748,112210.0,112200.0,0.0002]
[1756429558116,6.13186677,112210.0,112200.0,0.0012]
[1756429558316,6.47299728,112210.0,112200.0,0.0012]
[1756429558633,5.52121632,112210.0,112200.0,0.00334]
[1756429558804,6.0349979,112210.0,112200.0,0.0012]
[1756429559040,6.0380679,112210.0,112200.0,0.0012]
[1756429559245,0.178269,112190.0,112180.0,0.1901786]
[1756429559466,0.45690044,112190.0,112180.0,0.1923186]
[1756429559696,0.63516944,112190.0,112180.0,0.1923186]
[1756429560250,0.09863854,112190.0,112180.0,0.1923186]
[1756429560466,0.06715371,112190.0,112180.0,0.2810933]
[1756429560662,0.06715371,112190.0,112180.0,0.27617959]
[1756429560868,0.06710979,112190.0,112180.0,0.27617959]
[1756429561266,0.04348408,112190.0,112180.0,0.18228489]
[1756429562259,0.4717804,112190.0,112180.0,0.18228489]
[1756429562475,0.49540611,112190.0,112180.0,0.18228489]
[1756429562681,0.40710979,112190.0,112180.0,0.18228489]
[1756429563185,0.38348408,112190.0,112180.0,0.18228489]
[1756429563357,0.40710979,112190.0,112180.0,0.18228489]
[1756429563787,0.02362571,112200.0,112190.0,0.178269]
[1756429563933,0.52362571,112200.0,112190.0,0.178269]
[1756429564137,0.02362571,112200.0,112190.0,0.178269]
[1756429564322,0.02362571,112200.0,112190.0,0.77838722]
[1756429564698,0.02362571,112210.0,112200.0,0.17825311]
[1756429564820,0.02362571,112210.0,112200.0,0.26654943]
[1756429565225,0.05511054,112220.0,112210.0,0.17823723]
[1756429565441,0.03148483,112220.0,112210.0,0.17823723]
[1756429565654,0.03148483,112220.0,112210.0,0.33183723]
[1756429565852,0.05522165,112220.0,112210.0,0.35402516]
[1756429566123,0.39281673,112220.0,112210.0,0.17823723]
[1756429566300,0.39900677,112220.0,112210.0,0.17823723]
[1756429566862,0.39281673,112220.0,112210.0,0.17823723]
[1756429567099,0.04074671,112220.0,112210.0,0.17823723]
[1756429567352,0.37767671,112220.0,112210.0,0.17823723]
[1756429567571,0.05527389,112220.0,112210.0,0.62479545]
[1756429567778,0.02378906,112220.0,112210.0,0.26653355]
[1756429567980,0.02378906,112220.0,112210.0,0.62279545]
[1756429569209,0.02378906,112220.0,112210.0,0.62479545]
[1756429569444,0.02378906,112220.0,112210.0,0.71309177]
[1756429569745,0.02378906,112220.0,112210.0,0.35482987]
[1756429569953,0.02378906,112220.0,112210.0,0.71309177]
[1756429570166,0.02378906,112220.0,112210.0,0.62479545]
[1756429571053,0.23734096,112240.0,112230.0,0.17820547]
[1756429571236,0.2456174,112240.0,112230.0,0.33188547]
[1756429572684,0.2456174,112240.0,112230.0,0.33488547]
[1756429572930,0.42380699,112240.0,112230.0,0.003]
[1756429573099,0.42380699,112240.0,112230.0,0.18120547]
[1756429573275,0.6038793,112240.0,112230.0,0.18120547]
[1756429574014,0.2456174,112240.0,112230.0,0.18120547]
[1756429575213,0.78206889,112240.0,112230.0,0.003]
[1756429575379,0.76748049,112240.0,112230.0,0.003]
[1756429575576,0.42380699,112240.0,112230.0,0.003]
[1756429575779,0.46763052,112240.0,112230.0,0.18120547]
[1756429575978,0.81130402,112240.0,112230.0,0.18120547]
[1756429576722,0.28736093,112240.0,112230.0,0.18120547]
[1756429577072,0.63311443,112240.0,112230.0,0.18120547]
[1756429577181,0.62691493,112240.0,112230.0,0.18120547]
[1756429577411,0.81129859,112240.0,112230.0,0.18120547]
[1756429577689,0.633109,112240.0,112230.0,0.18120547]
[1756429578095,0.89959491,112240.0,112230.0,0.003]
[1756429578539,5.31652541,112240.0,112230.0,0.003]
[1756429578738,5.66019891,112240.0,112230.0,0.003]
[1756429579364,0.51820547,112230.0,112220.0,0.17822039]
[1756429579540,5.82825751,112230.0,112220.0,0.17822039]
[1756429579857,1.07058351,112230.0,112210.0,0.33882909]
[1756429580034,0.3466035,112220.0,112210.0,0.33893186]
[1756429580404,0.03022734,112220.0,112210.0,0.33893186]
[1756429580563,0.02729734,112220.0,112210.0,0.33893186]
[1756429580980,0.03230734,112220.0,112210.0,0.18529186]
[1756429581201,0.91072238,112220.0,112210.0,0.00014277]
[1756429581545,0.91691875,112220.0,112210.0,0.00014277]
[1756429581718,0.57324525,112220.0,112210.0,0.00014277]
[1756429581947,0.91691875,112220.0,112210.0,0.00314277]
[1756429582365,0.91691875,112220.0,112210.0,0.00014277]
[1756429582508,0.98031527,112220.0,112210.0,0.00014277]
[1756429582716,0.98031527,112220.0,112210.0,0.00214277]
[1756429583078,0.51823723,112210.0,112200.0,0.17825311]
[1756429583285,0.57118113,112210.0,112200.0,0.17825311]
[1756429583529,0.7386974,112210.0,112200.0,0.17825311]
[1756429584192,0.91693923,112210.0,112200.0,0.17825311]
[1756429584380,0.34,112200.0,112190.0,0.400309]
[1756429584545,0.73042563,112200.0,112190.0,0.331749]
[1756429584730,0.73870518,112200.0,112190.0,0.331749]
[1756429585344,0.91695829,112200.0,112190.0,0.15348]
[1756429585546,0.91695829,112200.0,112180.0,0.34063913]
[1756429585935,0.91695829,112200.0,112180.0,0.40028057]
[1756429585936,0.34,112190.0,112180.0,0.40028057]
[1756429586135,0.02730194,112190.0,112180.0,0.90288121]
[1756429586549,0.02690194,112190.0,112180.0,0.90288121]
[1756429587289,0.02691966,112190.0,112180.0,0.33513689]
[1756429587485,0.02691966,112190.0,112180.0,0.42905545]
[1756429587486,0.01905426,112190.0,112180.0,0.42905545]
[1756429587689,0.02198426,112190.0,112180.0,0.27549545]
[1756429587889,0.01905426,112190.0,112180.0,0.42901545]
[1756429588713,0.01905426,112190.0,112180.0,0.78723433]
[1756429589741,0.01905426,112190.0,112180.0,0.78823433]
[1756429589944,0.01905426,112190.0,112180.0,0.87653065]
[1756429590135,0.01905426,112190.0,112180.0,0.36479177]
[1756429590468,0.01905426,112190.0,112180.0,0.43001545]
[1756429590656,0.02198426,112190.0,112180.0,0.43001545]
[1756429591066,0.02198426,112190.0,112180.0,0.42901545]
[1756429591067,0.02406426,112190.0,112180.0,0.42901545]
[1756429591428,0.02198426,112190.0,112180.0,0.43201545]
[1756429592052,0.01905426,112190.0,112180.0,0.50079452]
[1756429594258,0.00293,112200.0,112190.0,0.178269]
[1756429594844,0.70114888,112210.0,112200.0,0.17825311]
[1756429595055,0.72851644,112210.0,112200.0,0.33173311]
[1756429595576,0.90675367,112210.0,112200.0,0.33173311]
[1756429595795,0.90675367,112210.0,112190.0,0.178269]
[1756429595997,0.69821888,112200.0,112190.0,0.331749]
[1756429596183,0.72230646,112200.0,112190.0,0.331749]
[1756429596378,0.36408758,112200.0,112190.0,0.331749]
[1756429596992,0.72230646,112200.0,112190.0,0.331749]
[1756429597434,0.34501,112200.0,112190.0,0.331749]
[1756429598455,0.34501,112200.0,112190.0,0.333749]
[1756429598780,0.54234162,112200.0,112190.0,0.333749]
[1756429598913,0.9005605,112200.0,112190.0,0.002]
[1756429599123,0.90884064,112200.0,112190.0,0.002]
[1756429599583,0.90884064,112200.0,112180.0,0.33168489]
[1756429599781,0.34293,112190.0,112180.0,0.33168489]
[1756429600286,0.34501,112190.0,112180.0,0.33168489]
[1756429600736,0.95182077,112190.0,112180.0,0.33172489]
[1756429600938,0.95182077,112190.0,112180.0,0.15344]
[1756429600939,0.90057351,112190.0,112180.0,0.15344]
[1756429601335,0.90057351,112190.0,112180.0,0.33172489]
[1756429601525,0.70322888,112190.0,112180.0,0.33172489]
[1756429601676,0.72230356,112190.0,112180.0,0.33172489]
[1756429602078,0.90057256,112190.0,112180.0,0.33172489]
[1756429602299,0.54235368,112190.0,112180.0,0.33372489]
[1756429602671,0.523279,112190.0,112180.0,0.33372489]
[1756429602926,0.90057162,112190.0,112180.0,0.33372489]
[1756429603611,0.72230262,112190.0,112180.0,0.33372489]
[1756429604023,0.90057162,112190.0,112180.0,0.33372489]
[1756429606016,0.36408374,112190.0,112180.0,0.33372489]
[1756429606218,0.90057162,112190.0,112180.0,0.33372489]
[1756429606504,0.90057162,112190.0,112180.0,0.15544]
[1756429607179,0.90057162,112190.0,112180.0,0.33372489]
[1756429607379,0.8863199,112190.0,112180.0,0.33372489]
[1756429607610,0.8863199,112190.0,112180.0,0.15544]
[1756429608349,0.98289976,112190.0,112180.0,0.15544]
[1756429608555,0.89460344,112190.0,112180.0,0.15544]
[1756429609306,0.89460344,112190.0,112180.0,0.15344]
[1756429609623,0.89460344,112190.0,112180.0,0.15444]
[1756429610054,0.89460344,112190.0,112180.0,0.33272489]
[1756429610708,0.89460344,112190.0,112180.0,0.15444]
[1756429610915,0.89460344,112190.0,112180.0,0.33272489]
[1756429611336,0.98289976,112190.0,112180.0,0.15444]
[1756429611539,1.00568615,112190.0,112180.0,0.15444]
[1756429611712,0.91738983,112190.0,112180.0,0.001]
[1756429611912,1.07062983,112190.0,112180.0,0.001]
[1756429615618,1.15892615,112190.0,112180.0,0.001]
[1756429615837,1.15880615,112190.0,112180.0,0.001]
[1756429616459,0.81880615,112190.0,112180.0,0.001]
[1756429617488,0.81872615,112190.0,112180.0,0.001]
[1756429617689,0.32171899,112190.0,112180.0,0.001]
[1756429618015,0.81872615,112190.0,112180.0,0.001]
[1756429618493,1.15872615,112190.0,112180.0,0.001]
[1756429618753,1.15251901,112190.0,112180.0,0.001]
[1756429618996,1.15874231,112190.0,112180.0,0.001]
[1756429619228,6.3120869,112190.0,112180.0,0.001]
[1756429619668,6.3615565,112190.0,112180.0,0.001]
[1756429619889,6.3615565,112190.0,112140.0,0.25692795]
[1756429619890,0.17833259,112150.0,112140.0,0.20407925]
[1756429620115,0.52440975,112150.0,112140.0,0.13551925]
[1756429620333,0.72495873,112150.0,112140.0,0.00115925]
[1756429620588,0.72284873,112150.0,112140.0,0.18173709]
[1756429620774,0.37569157,112150.0,112140.0,0.17950774]
[1756429621095,0.38099157,112150.0,112140.0,0.33247529]
[1756429621298,0.38099157,112150.0,112140.0,0.33447529]
[1756429621547,0.72495873,112150.0,112140.0,0.33447529]
[1756429621752,0.38099157,112150.0,112140.0,0.33447529]
[1756429621965,0.35977512,112150.0,112140.0,0.38575921]
[1756429622375,0.37886026,112150.0,112140.0,0.33447529]
[1756429622678,0.37886026,112150.0,112140.0,0.33443529]
[1756429623006,0.35977512,112150.0,112140.0,0.33443529]
[1756429623179,0.37885178,112150.0,112140.0,0.33443529]
[1756429624533,0.72492894,112150.0,112140.0,0.33443529]
[1756429624665,0.37566178,112150.0,112140.0,0.33443529]
[1756429625492,0.03566178,112150.0,112140.0,0.67840245]
[1756429625693,0.34,112160.0,112150.0,0.17833259]
[1756429625889,0.35654849,112160.0,112150.0,0.17833259]
[1756429629446,0.37561098,112160.0,112150.0,0.33337259]
[1756429632055,0.37880098,112160.0,112150.0,0.33337259]
[1756429632254,0.37880098,112160.0,112150.0,0.18033259]
[1756429632456,0.38091098,112160.0,112150.0,0.18033259]
[1756429632660,0.91765983,112160.0,112150.0,0.002]
[1756429632841,0.94148628,112160.0,112150.0,0.18033259]
[1756429633032,0.94148628,112160.0,112150.0,0.002]
[1756429633033,0.91765983,112160.0,112150.0,0.002]
[1756429633237,0.94148628,112160.0,112150.0,0.002]
[1756429633503,0.40473743,112160.0,112150.0,0.18033259]
[1756429633710,0.40473743,112160.0,112150.0,0.23161728]
[1756429633930,0.37561098,112160.0,112150.0,0.23161728]
[1756429634097,0.03561098,112160.0,112150.0,0.23161728]
[1756429634306,0.03561098,112160.0,112150.0,0.18033259]
[1756429634307,0.01654873,112160.0,112150.0,0.18033259]
[1756429635099,0.01654873,112160.0,112150.0,0.26862891]
[1756429636072,0.02184873,112160.0,112150.0,0.26862891]
[1756429636820,0.01973873,112160.0,112150.0,0.26862891]
[1756429637024,0.02184873,112160.0,112150.0,0.26862891]
[1756429637424,0.0053,112160.0,112150.0,0.26862891]
[1756429637996,0.0053,112160.0,112150.0,0.27783516]
[1756429638266,0.0053,112160.0,112150.0,0.26862891]
[1756429639104,0.36373216,112160.0,112150.0,0.18033259]
[1756429639268,0.38028777,112160.0,112150.0,0.18033259]
[1756429639847,0.72028777,112160.0,112150.0,0.18033259]
[1756429640089,0.89860446,112160.0,112150.0,0.18033259]
[1756429640351,0.94157114,112160.0,112150.0,0.002]
[1756429640534,1.09465114,112160.0,112150.0,0.002]
[1756429642035,1.18294746,112160.0,112150.0,0.002]
[1756429642238,1.1974358,112160.0,112150.0,0.002]
[1756429642975,1.2242518,112160.0,112150.0,0.002]
[1756429645813,1.24261018,112160.0,112150.0,0.002]
[1756429645956,1.24261018,112160.0,112150.0,0.18033259]
[1756429646356,0.43529226,112160.0,112150.0,0.23162128]
[1756429646603,0.40226697,112160.0,112150.0,0.23162128]
[1756429646803,0.39398792,112160.0,112150.0,0.18033259]
[1756429647006,0.39937792,112160.0,112150.0,0.18033259]
[1756429647425,0.39722792,112160.0,112150.0,0.18033259]
[1756429647735,0.39398792,112160.0,112150.0,0.18033259]
[1756429648083,0.37743231,112160.0,112150.0,0.18033259]
[1756429648446,0.35835838,112160.0,112150.0,0.18033259]
[1756429649575,0.35835838,112160.0,112150.0,0.23162128]
[1756429649805,0.35835838,112160.0,112150.0,0.26862891]
[1756429650718,0.39387745,112180.0,112170.0,0.17830079]
[1756429650867,0.76642136,112180.0,112170.0,0.33110079]
[1756429651278,0.76020837,112180.0,112170.0,0.33110079]
[1756429651468,0.73339737,112180.0,112170.0,0.33110079]
[1756429652400,0.91168226,112180.0,112170.0,0.33110079]
[1756429652591,0.91168018,112180.0,112170.0,0.33110079]
[1756429652785,0.73339529,112180.0,112170.0,0.33110079]
[1756429653206,0.72511199,112180.0,112170.0,0.33110079]
[1756429653400,0.74353114,112180.0,112170.0,0.33110079]
[1756429654758,0.74353114,112180.0,112170.0,0.38204254]
[1756429654908,0.38104219,112180.0,112170.0,0.38204254]
[1756429655112,0.72511199,112180.0,112170.0,0.38204254]
[1756429655638,0.70854539,112180.0,112170.0,0.33110079]
[1756429655999,0.36447559,112180.0,112170.0,0.33110079]
[1756429656200,0.34539,112180.0,112170.0,0.33110079]
[1756429656408,0.34,112180.0,112170.0,0.33110079]
[1756429656611,0.88308316,112190.0,112180.0,0.17828489]
[1756429656813,0.93537592,112190.0,112180.0,0.17828489]
[1756429657037,0.39704689,112190.0,112180.0,0.17828489]
[1756429657217,0.34324,112190.0,112180.0,0.19295032]
[1756429657418,0.35949709,112190.0,112180.0,0.19295032]
[1756429657745,0.34324,112190.0,112180.0,0.19295032]
[1756429659302,0.34324,112190.0,112180.0,0.17828489]
[1756429660063,0.35969248,112190.0,112180.0,0.17828489]
[1756429660266,0.36184248,112190.0,112180.0,0.17828489]
[1756429660442,0.70591228,112190.0,112180.0,0.17828489]
[1756429660637,0.88418128,112190.0,112180.0,0.17828489]
[1756429660846,0.88418128,112190.0,112170.0,0.33110079]
[1756429661039,0.6873098,112180.0,112170.0,0.33110079]
[1756429661248,0.6894598,112180.0,112170.0,0.17830079]
[1756429661493,0.86774469,112180.0,112170.0,0.33094079]
[1756429661714,0.17830079,112170.0,112160.0,0.60661252]
[1756429661847,0.49483,112180.0,112170.0,0.17830079]
[1756429662244,1.01718469,112180.0,112170.0,0.17830079]
[1756429662581,1.02042469,112180.0,112170.0,0.17830079]
[1756429662929,1.02042469,112180.0,112160.0,0.42825639]
[1756429662930,1.04431744,112180.0,112160.0,0.18728007]
[1756429663082,0.86561059,112170.0,112160.0,0.34000007]
[1756429663286,0.86776059,112170.0,112160.0,0.34000007]
[1756429664104,0.6894598,112170.0,112160.0,0.34000007]
[1756429664899,0.86776059,112170.0,112160.0,0.34000007]
[1756429665793,0.6894598,112170.0,112160.0,0.34000007]
[1756429666014,0.34539,112170.0,112160.0,0.426455]
[1756429666417,0.34539,112170.0,112160.0,0.34000007]
[1756429667150,0.00539,112170.0,112160.0,0.34000007]
[1756429667357,0.34539,112170.0,112160.0,0.34000007]
[1756429667575,0.34,112170.0,112160.0,0.34000007]
[1756429668793,0.34298,112170.0,112160.0,0.34000007]
[1756429669020,0.34298,112170.0,112160.0,0.399785]
[1756429669136,0.34,112170.0,112160.0,0.399785]
[1756429669549,0.3470498,112180.0,112170.0,0.17830079]
[1756429669758,0.3491498,112180.0,112170.0,0.33114079]
[1756429669948,0.52743469,112180.0,112170.0,0.17830079]
[1756429670154,0.52743469,112180.0,112170.0,0.33110079]
[1756429670398,0.00508,112180.0,112170.0,0.33110079]
[1756429670909,0.52743469,112180.0,112170.0,0.33110079]
[1756429671331,0.3491498,112180.0,112170.0,0.33110079]
[1756429671531,0.00508,112180.0,112170.0,0.38891737]
[1756429671682,0.3491498,112180.0,112170.0,0.38891737]
[1756429672446,0.00298,112180.0,112170.0,0.33110079]
[1756429672622,0.88008928,112190.0,112180.0,0.17828489]
[1756429672790,0.72942928,112190.0,112180.0,0.17828489]
[1756429673194,0.88387128,112190.0,112180.0,0.17828489]
[1756429674547,0.51828489,112180.0,112170.0,0.17830079]
[1756429674778,0.52126489,112180.0,112170.0,0.33106079]
[1756429675009,0.52336489,112180.0,112170.0,0.33106079]
[1756429675150,0.86743469,112180.0,112170.0,0.33106079]
[1756429675717,0.86743469,112180.0,112170.0,0.33102079]
[1756429677174,0.6891498,112180.0,112170.0,0.33102079]
[1756429677370,0.86743469,112180.0,112170.0,0.33102079]
[1756429678339,0.6891498,112180.0,112170.0,0.33102079]
[1756429680409,0.6870498,112180.0,112170.0,0.33102079]
[1756429680612,0.34298,112180.0,112170.0,0.33102079]
[1756429680815,0.6870498,112180.0,112170.0,0.33102079]
[1756429680994,0.6891498,112180.0,112170.0,0.33102079]
[1756429682286,0.6891498,112180.0,112170.0,0.17830079]
[1756429682509,0.34508,112180.0,112170.0,0.33086079]
[1756429682683,0.34,112180.0,112170.0,0.40934488]
[1756429682910,0.6870498,112190.0,112180.0,0.17828489]
[1756429683085,0.70615216,112190.0,112180.0,0.17828489]
[1756429683426,0.6870498,112190.0,112180.0,0.17828489]
[1756429683884,0.6891498,112190.0,112180.0,0.17828489]
[1756429684095,0.34,112190.0,112180.0,0.23802909]
[1756429684265,0.34298,112200.0,112190.0,0.178269]
[1756429684468,0.6870498,112200.0,112190.0,0.330869]
[1756429684790,0.6891498,112200.0,112190.0,0.330869]
[1756429685004,0.66318288,112200.0,112190.0,0.178269]
[1756429685223,0.66318288,112200.0,112190.0,0.330869]
[1756429686365,0.84143599,112200.0,112190.0,0.178269]
[1756429686538,0.84143599,112200.0,112190.0,0.330829]
[1756429686741,1.18550579,112200.0,112190.0,0.330829]
[1756429686913,1.18848579,112200.0,112190.0,0.330829]
[1756429688084,1.01023268,112200.0,112190.0,0.330829]
[1756429688502,1.18848579,112200.0,112190.0,0.330829]
[1756429690173,1.18848579,112200.0,112190.0,0.178269]
[1756429690347,0.178269,112190.0,112180.0,0.44498489]
[1756429690550,0.552726,112190.0,112180.0,0.59742489]
[1756429690752,0.17830079,112170.0,112160.0,4.755e-05]
[1756429691075,0.6881396,112170.0,112160.0,0.41910056]
[1756429691276,0.888449,112170.0,112160.0,0.33080424]
[1756429691824,0.71014821,112170.0,112160.0,0.33080424]
[1756429691961,0.9137562,112170.0,112160.0,0.33080424]
[1756429692355,0.9137562,112170.0,112160.0,0.33214424]
[1756429692356,0.36607841,112170.0,112160.0,0.33214424]
[1756429692660,0.36607841,112170.0,112160.0,0.33080424]
[1756429692861,0.36607841,112170.0,112160.0,0.33214424]
[1756429693302,0.6891498,112170.0,112160.0,0.33214424]
[1756429693464,0.6891498,112170.0,112160.0,0.33080424]
[1756429695260,0.6891498,112170.0,112160.0,0.33214424]
[1756429695475,0.6891498,112170.0,112160.0,0.33180424]
[1756429696971,0.86745059,112170.0,112160.0,0.17936424]
[1756429697134,0.86745059,112170.0,112160.0,0.33192424]
[1756429697332,0.86745059,112170.0,112160.0,0.33188424]